bitfinex-derivatives/quotes_SOLF0:USTF0_20250817
["timestamp","ask_amount","ask_price","bid_price","bid_amount"]
[1755465186691,2.98,191.44,191.4,3.07]
[1755465190596,2.98,191.43,191.4,3.07]
[1755465191702,2.98,191.5,191.4,3.07]
[1755465191899,2.98,191.48,191.4,3.07]
[1755465192199,2.98,191.46,191.4,3.07]
[1755465192392,2.98,191.44,191.4,3.07]
[1755465192594,2.98,191.42,191.37,3.07]
[1755465192899,3.97947216,191.41,191.37,3.07]
[1755465193100,2.98,191.42,191.37,3.07]
[1755465193402,2.98,191.39,191.37,3.07]
[1755465194298,5.84375388,191.48,191.37,3.07]
[1755465194603,2.98,191.44,191.37,3.07]
[1755465194802,3.97775878,191.43,191.37,3.07]
[1755465195003,2.98,191.43,191.37,8.292]
[1755465195202,2.98,191.43,191.38,3.07]
[1755465195404,2.98,191.42,191.38,3.07]
[1755465200816,2.81,191.41,191.38,3.07]
[1755465201016,2.81,191.47,191.37,3.02]
[1755465201219,2.81,191.39,191.37,3.02]
[1755465202717,2.81,191.38,191.32,5.2234]
[1755465203306,2.81,191.38,191.33,8.2432]
[1755465203511,2.81,191.38,191.33,5.2232]
[1755465203707,2.81,191.38,191.34,3.02]
[1755465209517,2.81,191.37,191.34,3.02]
[1755465216832,2.45196421,191.45,191.34,3.02]
[1755465217030,2.81,191.43,191.34,3.02]
[1755465217230,2.81,191.41,191.34,3.02]
[1755465217432,2.81,191.39,191.34,3.02]
[1755465218728,3.97902327,191.38,191.3,2.45196421]
[1755465218934,2.81,191.39,191.33,2.45196421]
[1755465219137,3.97963808,191.38,191.34,3.02]
[1755465219335,2.81,191.37,191.34,3.02]
[1755465222841,2.81,191.43,191.34,3.02]
[1755465223040,2.81,191.41,191.34,3.02]
[1755465223346,2.81,191.39,191.34,3.02]
[1755465223542,2.81,191.37,191.34,3.02]
[1755465224136,3.99076581,191.36,191.34,3.02]
[1755465224338,2.81,191.36,191.34,3.02]
[1755465225342,2.81,191.36,191.3,5.47196421]
[1755465225536,2.81,191.36,191.31,3.02]
[1755465225744,2.81,191.34,191.33,0.03626999]
[1755465225947,6.8006879,191.34,191.33,0.03626999]
[1755465227046,6.8006879,191.34,191.33,3.05626999]
[1755465240151,3.9906879,191.34,191.33,0.03626999]
[1755465240357,3.99004198,191.34,191.33,3.03626999]
[1755465240651,2.84,191.39,191.33,0.03626999]
[1755465240954,2.84,191.37,191.33,3.03626999]
[1755465241148,2.84,191.35,191.34,3.0]
[1755465241348,2.84,191.34,191.33,0.03626999]
[1755465241749,6.83058035,191.34,191.33,0.03626999]
[1755465241945,6.83058035,191.34,191.33,3.03626999]
[1755465247150,3.99058035,191.34,191.33,3.03626999]
[1755465248058,6.83058035,191.34,191.33,3.03626999]
[1755465249757,3.99058035,191.34,191.33,3.03626999]
[1755465251354,6.83058035,191.34,191.33,3.03626999]
[1755465251657,3.99058035,191.34,191.33,3.03626999]
[1755465253862,3.99058035,191.34,191.33,4.60598536]
[1755465254058,2.84,191.41,191.34,3.0]
[1755465254260,2.84,191.39,191.38,3.0]
[1755465254454,11.5104939,191.39,191.38,3.0]
[1755465255362,8.6704939,191.39,191.38,3.0]
[1755465255656,3.99292387,191.39,191.38,3.0]
[1755465256260,5.84375388,191.44,191.38,3.0]
[1755465256261,2.84,191.44,191.38,5.44957203]
[1755465256562,4.67726118,191.43,191.39,3.0]
[1755465256750,8.68375388,191.46,191.39,3.0]
[1755465256955,4.67778586,191.45,191.43,3.0]
[1755465257162,351.08,191.58,191.44,3.0]
[1755465257163,5.84375388,191.53,191.44,3.0]
[1755465257358,351.08,191.58,191.47,3.0]
[1755465257359,2.84,191.51,191.47,3.0]
[1755465257663,2.95,191.49,191.47,3.03609687]
[1755465261062,2.95,191.57,191.47,3.03609687]
[1755465261260,2.95,191.55,191.47,3.03609687]
[1755465263266,4.30275394,191.54,191.47,3.03609687]
[1755465263465,2.95,191.55,191.47,3.03609687]
[1755465264160,2.95,191.55,191.49,2.44957203]
[1755465264356,351.08,191.58,191.5,2.98]
[1755465264565,2.95,191.54,191.5,2.98]
[1755465264866,2.95,191.56,191.5,2.98]
[1755465265061,2.95,191.56,191.5,3.01817613]
[1755465268274,3.94751883,191.55,191.5,3.01817613]
[1755465268469,2.95,191.53,191.5,3.01817613]
[1755465273065,2.95,191.55,191.5,3.01817613]
[1755465273271,2.95,191.57,191.5,3.01817613]
[1755465273578,3.94148736,191.56,191.5,3.01817613]
[1755465273776,2.95,191.57,191.5,3.01817613]
[1755465273969,6.89150869,191.56,191.5,3.01817613]
[1755465274166,2.95,191.56,191.5,3.01817613]
[1755465274563,354.03,191.58,191.5,3.01817613]
[1755465274765,5.84375388,191.65,191.53,2.98]
[1755465274766,2.95,191.6,191.53,2.98]
[1755465275770,2.95,191.62,191.55,2.44957203]
[1755465276076,2.95,191.62,191.56,2.98]
[1755465278476,2.95,191.64,191.56,2.98]
[1755465278677,2.95,191.64,191.56,5.2167]
[1755465278879,2.95,191.64,191.57,2.98]
[1755465281481,3.9115723,191.63,191.57,2.98]
[1755465281774,2.95,191.62,191.57,2.98]
[1755465285572,2.95,191.61,191.57,2.98]
[1755465285880,126.88,191.65,191.57,2.98]
[1755465286179,2.95,191.63,191.57,2.98]
[1755465287875,3.9100528,191.62,191.57,2.98]
[1755465288081,2.91,191.61,191.58,2.97]
[1755465288882,2.91,191.61,191.59,2.97]
[1755465289282,2.91,191.64,191.53,2.97]
[1755465289480,3.91143744,191.63,191.53,2.97]
[1755465289684,3.91143744,191.62,191.53,2.97]
[1755465289886,2.91,191.6,191.53,2.97]
[1755465294097,3.91854253,191.59,191.53,2.97]
[1755465294298,2.91,191.59,191.54,2.97]
[1755465295693,2.91,191.64,191.54,2.97]
[1755465295890,2.91,191.62,191.54,2.97]
[1755465296090,2.91,191.6,191.54,2.97]
[1755465296287,6.83074991,191.59,191.54,2.97]
[1755465296589,2.91,191.59,191.54,2.97]
[1755465297096,3.92609012,191.58,191.54,2.97]
[1755465297399,2.91,191.59,191.54,2.97]
[1755465297594,3.92609012,191.58,191.54,2.97]
[1755465297795,2.91,191.59,191.54,2.97]
[1755465297994,3.92609012,191.58,191.54,2.97]
[1755465298197,2.91,191.58,191.54,2.97]
[1755465299194,3.93190595,191.57,191.54,2.97]
[1755465299500,2.91,191.58,191.54,2.97]
[1755465299700,3.93190595,191.57,191.54,2.97]
[1755465299902,2.91,191.58,191.54,2.97]
[1755465300093,3.93190595,191.57,191.54,2.97]
[1755465300297,2.91,191.59,191.54,2.97]
[1755465300590,3.9347636,191.58,191.54,2.97]
[1755465300791,5.84375388,191.64,191.55,2.44957203]
[1755465300990,3.93468493,191.63,191.59,2.97]
[1755465301194,3.93468493,191.62,191.59,2.97]
[1755465301394,3.93468493,191.61,191.59,2.97]
[1755465301702,3.93468493,191.6,191.59,2.97]
[1755465301998,2.91,191.59,191.56,2.97]
[1755465302202,2.91,191.61,191.56,2.97]
[1755465302401,3.93828089,191.6,191.56,2.97]
[1755465302602,3.93828089,191.59,191.56,2.97]
[1755465302901,3.93828089,191.58,191.56,8.1868]
[1755465303090,2.91,191.61,191.57,2.97]
[1755465303297,3.93930788,191.6,191.57,2.97]
[1755465303496,3.93930788,191.59,191.57,2.97]
[1755465303692,3.93930688,191.58,191.57,2.97]
[1755465304094,2.91,191.61,191.57,2.97]
[1755465304300,6.84980182,191.6,191.57,2.97]
[1755465304500,3.93980182,191.59,191.57,2.97]
[1755465304798,477.62,191.69,191.61,2.97]
[1755465304799,356.66375388,191.69,191.61,2.97]
[1755465305102,2.91,191.67,191.62,2.97]
[1755465305304,2.91,191.65,191.62,2.97]
[1755465305501,3.93914369,191.64,191.62,2.97]
[1755465305703,3.93914369,191.63,191.62,2.97]
[1755465306104,350.82,191.69,191.62,2.97]
[1755465306302,2.91,191.67,191.62,2.97]
[1755465306603,2.91,191.65,191.62,2.97]
[1755465306802,3.88606116,191.64,191.62,2.97]
[1755465307005,350.82,191.69,191.61,2.44957203]
[1755465307199,350.82,191.69,191.39,32.52707183]
[1755465307200,5.35957203,191.67,191.58,2.97]
[1755465307400,2.91,191.63,191.55,2.97]
[1755465307603,2.44957203,191.64,191.55,2.97]
[1755465307604,2.91,191.61,191.55,2.97]
[1755465307902,2.91,191.58,191.55,2.97]
[1755465308106,3.88925733,191.57,191.52,2.97]
[1755465308309,3.88962731,191.56,191.52,2.97]
[1755465308604,2.91,191.6,191.52,2.97]
[1755465308803,3.88986642,191.59,191.52,2.97]
[1755465309105,2.91,191.57,191.47,2.44957203]
[1755465309306,2.91,191.55,191.48,2.97]
[1755465309495,2.91,191.53,191.44,2.97]
[1755465309701,2.91,191.51,191.44,2.97]
[1755465309896,8.1070789,191.5,191.44,2.97]
[1755465310102,2.91,191.48,191.47,0.03485201]
[1755465310302,3.88986642,191.48,191.47,0.03485201]
[1755465310497,2.91,191.47,191.45,2.97]
[1755465310702,2.91,191.45,191.38,2.97]
[1755465310903,2.91,191.43,191.38,2.97]
[1755465311106,2.91,191.41,191.38,2.97]
[1755465311305,2.91,191.41,191.4,3.00493435]
[1755465311807,3.88568,191.41,191.37,2.97]
[1755465312111,3.88568,191.4,191.33,2.97]
[1755465312312,3.88568,191.39,191.34,2.44957203]
[1755465312503,2.44957203,191.51,191.3,350.64]
[1755465312504,2.91,191.47,191.38,2.97]
[1755465312703,11.6219742,191.58,191.37,2.48512583]
[1755465312704,5.84375388,191.55,191.47,2.97]
[1755465312903,2.91,191.53,191.47,2.97]
[1755465313113,6.79299124,191.52,191.47,2.97]
[1755465313311,3.88299124,191.51,191.5,2.97]
[1755465313610,6.79299124,191.51,191.5,2.97]
[1755465313813,2.91,191.51,191.5,2.97]
[1755465314203,2.91,191.53,191.5,2.97]
[1755465314612,2.91,191.53,191.49,2.48809019]
[1755465314809,2.91,191.53,191.5,2.97]
[1755465315110,2.91,191.53,191.49,2.48809019]
[1755465315310,2.91,191.52,191.51,2.97]
[1755465315703,2.91,191.52,191.49,2.48809019]
[1755465315904,2.91,191.52,191.5,2.97]
[1755465316815,2.91,191.52,191.51,2.97]
[1755465317317,350.64,191.56,191.51,2.97]
[1755465317505,2.91,191.54,191.52,2.97]
[1755465317909,2.91,191.54,191.53,3.07]
[1755465318109,2.83,191.56,191.54,3.07]
[1755465319404,3.88013102,191.55,191.53,0.03634496]
[1755465319610,2.83,191.57,191.53,0.03634496]
[1755465319807,2.83,191.54,191.53,0.03634496]
[1755465320113,6.71025461,191.54,191.53,0.03634496]
[1755465320713,2.83,191.54,191.53,0.03634496]
[1755465321018,2.83,191.54,191.53,3.10634496]
[1755465321414,5.84375388,191.63,191.54,3.07]
[1755465321718,2.83,191.61,191.54,3.07]
[1755465322515,2.83,191.61,191.56,0.03577215]
[1755465322715,2.83,191.6,191.58,3.07]
[1755465322910,2.83,191.59,191.58,3.07]
[1755465323516,127.46,191.64,191.56,0.03577215]
[1755465323814,2.83,191.62,191.56,0.03577215]
[1755465324012,2.83,191.6,191.56,0.03577215]
[1755465324208,2.83,191.58,191.56,0.03577215]
[1755465324414,3.87963882,191.57,191.56,3.10577215]
[1755465324712,2.83,191.61,191.56,3.10577215]
[1755465324914,2.83,191.66,191.56,3.10577215]
[1755465325120,131.49956786,191.65,191.56,3.10577215]
[1755465325318,6.70956786,191.64,191.56,3.10577215]
[1755465325518,2.83,191.64,191.56,3.10577215]
[1755465325707,2.83,191.64,191.57,5.2167]
[1755465325910,127.62,191.65,191.58,3.07]
[1755465326813,127.62,191.65,191.58,8.2863]
[1755465327015,127.62,191.65,191.59,3.07]
[1755465327212,130.45,191.65,191.59,3.07]
[1755465327911,2.83,191.64,191.61,3.07]
[1755465328111,2.83,191.64,191.6,0.03547895]
[1755465328312,2.83,191.64,191.63,3.07]
[1755465330716,127.62,191.65,191.6,0.03547895]
[1755465330908,3.87793135,191.64,191.6,0.03547895]
[1755465331113,3.87793135,191.63,191.6,3.10547895]
[1755465331314,2.83,191.62,191.61,3.07]
[1755465336024,2.83,191.64,191.61,3.07]
[1755465336225,127.62,191.65,191.61,3.07]
[1755465336927,130.45,191.65,191.61,3.07]
[1755465337123,127.62,191.65,191.6,0.03547895]
[1755465337425,3.89475924,191.64,191.6,3.10547895]
[1755465337618,2.83,191.62,191.6,3.10547895]
[1755465337821,2.83,191.62,191.6,0.03547895]
[1755465338126,2.83,191.62,191.61,3.07]
[1755465339427,2.83,191.62,191.6,0.03547895]
[1755465339627,3.8937531,191.61,191.6,0.03547895]
[1755465339831,6.7237531,191.61,191.6,0.03547895]
[1755465340620,6.7237531,191.61,191.6,3.10547895]
[1755465340820,2.83,191.61,191.6,3.10547895]
[1755465341326,127.62,191.65,191.6,3.10547895]
[1755465341629,2.83,191.63,191.61,3.07]
[1755465341930,3.89285868,191.62,191.61,3.07]
[1755465343729,6.72285868,191.62,191.61,3.07]
[1755465348533,3.89285868,191.62,191.61,3.07]
[1755465348834,2.91,191.64,191.61,3.07]
[1755465349136,6.8037992,191.63,191.6,0.03547895]
[1755465349333,2.91,191.63,191.62,2.8]
[1755465349529,6.80397406,191.63,191.62,2.8]
[1755465349727,3.89397406,191.63,191.61,2.8]
[1755465349929,3.89369746,191.62,191.6,0.03547895]
[1755465350129,6.80365535,191.61,191.6,0.03547895]
[1755465351337,6.80365535,191.61,191.6,2.83547895]
[1755465351837,6.80365535,191.61,191.6,0.03547895]
[1755465352238,11.36025347,191.61,191.6,0.03547895]
[1755465352435,9.25139703,191.61,191.6,0.03547895]
[1755465352637,13.80827435,191.61,191.6,0.03547895]
[1755465353343,2.91,191.6,191.48,2.8]
[1755465353641,2.91,191.58,191.48,2.8]
[1755465353939,11.36053267,191.57,191.48,2.8]
[1755465354137,3.89365535,191.56,191.48,2.8]
[1755465354533,0.0352788,191.54,191.48,2.8]
[1755465354739,0.0352788,191.54,191.48,6.95411834]
[1755465355039,0.0352788,191.54,191.49,8.0187]
[1755465355238,0.0352788,191.54,191.5,2.8]
[1755465356039,127.6,191.61,191.5,2.84011362]
[1755465356240,8.4575818,191.6,191.51,5.2183]
[1755465356442,3.89602803,191.59,191.52,2.8]
[1755465356641,3.89602803,191.58,191.52,2.8]
[1755465356841,3.89602803,191.57,191.52,2.8]
[1755465357039,130.51,191.61,191.52,2.8]
[1755465357238,8.46723311,191.6,191.54,2.8]
[1755465357436,3.89917953,191.59,191.54,2.8]
[1755465357642,3.89917953,191.58,191.54,2.8]
[1755465357840,3.89917953,191.57,191.54,2.8]
[1755465358141,130.51,191.61,191.54,2.8]
[1755465358445,11.38404282,191.6,191.54,2.8]
[1755465358642,11.38404282,191.59,191.54,2.8]
[1755465358943,2.91,191.57,191.54,2.8]
[1755465359247,2.91,191.55,191.54,2.8]
[1755465359443,6.8146806,191.55,191.54,2.8]
[1755465359642,3.9046806,191.55,191.54,2.8]
[1755465359844,2.91,191.57,191.54,2.8]
[1755465360042,11.3843739,191.56,191.55,2.8]
[1755465360242,11.3843739,191.56,191.53,0.03572563]
[1755465360442,2.91,191.54,191.53,0.03572563]
[1755465360643,6.8146806,191.54,191.53,0.03572563]
[1755465361043,6.8146806,191.54,191.53,2.83572563]
[1755465362739,6.8146806,191.54,191.53,0.03572563]
[1755465362942,6.8146806,191.54,191.53,2.83572563]
[1755465365348,6.8146806,191.54,191.53,0.03572563]
[1755465366052,6.8146806,191.54,191.53,2.83572563]
[1755465367258,6.8146806,191.54,191.53,0.03572563]
[1755465367455,6.8146806,191.54,191.53,2.83572563]
[1755465368356,6.8146806,191.54,191.53,0.03572563]
[1755465368558,3.9046806,191.54,191.53,2.83572563]
[1755465369555,3.9046806,191.55,191.53,2.83572563]
[1755465369758,3.9046806,191.54,191.53,2.83572563]
[1755465370160,2.91,191.59,191.53,2.83572563]
[1755465370357,3.90401783,191.58,191.53,2.83572563]
[1755465370557,3.90401783,191.57,191.53,2.83572563]
[1755465370757,3.90401783,191.56,191.53,2.83572563]
[1755465371057,3.90401783,191.55,191.53,2.83572563]
[1755465371258,2.91,191.59,191.53,2.83572563]
[1755465371559,6.81418153,191.58,191.53,2.83572563]
[1755465371764,3.90418153,191.57,191.53,2.83572563]
[1755465371963,3.90418153,191.56,191.53,2.83572563]
[1755465372162,3.90418153,191.55,191.53,2.83572563]
[1755465372461,2.91,191.58,191.53,2.83572563]
[1755465372662,3.90497812,191.57,191.53,2.83572563]
[1755465372959,3.90497812,191.56,191.53,2.83572563]
[1755465373262,3.90497812,191.55,191.53,2.83572563]
[1755465373463,2.91,191.58,191.53,2.83572563]
[1755465373764,3.90549687,191.57,191.53,2.83572563]
[1755465373965,3.90549687,191.56,191.53,2.83572563]
[1755465374257,3.90549687,191.55,191.53,2.83572563]
[1755465374459,2.91,191.58,191.53,2.83572563]
[1755465374663,3.90605316,191.57,191.53,2.83572563]
[1755465374862,3.90605316,191.56,191.53,2.83572563]
[1755465375161,3.90605316,191.55,191.53,2.83572563]
[1755465375464,2.91,191.58,191.53,2.83572563]
[1755465375658,3.90667342,191.57,191.53,2.83572563]
[1755465375865,3.90667342,191.56,191.53,2.83572563]
[1755465376067,2.91,191.6,191.53,2.83572563]
[1755465376259,3.90697005,191.59,191.53,2.83572563]
[1755465376465,3.90697005,191.58,191.53,2.83572563]
[1755465376665,3.90697005,191.57,191.53,2.83572563]
[1755465376868,3.90697005,191.56,191.53,2.83572563]
[1755465377069,2.91,191.6,191.53,2.83572563]
[1755465377267,3.90687186,191.59,191.53,2.83572563]
[1755465377467,3.90687186,191.58,191.53,2.83572563]
[1755465377671,3.90687186,191.57,191.53,2.83572563]
[1755465377871,3.90687186,191.56,191.53,2.83572563]
[1755465378071,2.91,191.6,191.53,2.83572563]
[1755465378271,3.90729896,191.59,191.53,2.83572563]
[1755465378468,3.90729896,191.58,191.53,2.83572563]
[1755465378770,3.90729896,191.57,191.53,2.83572563]
[1755465379069,3.90729896,191.56,191.53,2.83572563]
[1755465379280,2.91,191.6,191.53,2.83572563]
[1755465379477,3.90731825,191.59,191.53,2.83572563]
[1755465379777,3.90731825,191.58,191.53,2.83572563]
[1755465380079,3.90731825,191.57,191.53,2.83572563]
[1755465380376,3.90731825,191.56,191.53,2.83572563]
[1755465380677,3.03,191.6,191.53,2.83572563]
[1755465380872,3.9076146,191.59,191.53,2.83572563]
[1755465381068,3.9076146,191.58,191.53,2.83572563]
[1755465381376,3.9076146,191.57,191.53,2.83572563]
[1755465381682,3.9076146,191.56,191.53,2.83572563]
[1755465381983,127.56,191.62,191.53,2.83572563]
[1755465382173,11.25537939,191.61,191.53,2.83572563]
[1755465382478,3.03,191.59,191.53,2.83572563]
[1755465382676,3.90849586,191.58,191.53,2.83572563]
[1755465382865,3.90849586,191.57,191.53,2.83572563]
[1755465383070,3.90849586,191.56,191.53,2.83572563]
[1755465383372,3.03,191.59,191.53,2.83572563]
[1755465383678,6.93964411,191.58,191.53,2.83572563]
[1755465383877,3.90964411,191.57,191.53,2.83572563]
[1755465384079,3.90964411,191.56,191.53,2.83572563]
[1755465384271,3.03,191.58,191.53,2.83572563]
[1755465384473,3.03,191.56,191.54,3.0]
[1755465384675,133.40375388,191.62,191.54,3.0]
[1755465384676,3.90888349,191.55,191.54,3.0]
[1755465384984,6.93888349,191.55,191.54,3.0]
[1755465389882,3.90888349,191.55,191.54,3.0]
[1755465390576,127.56,191.62,191.54,3.0]
[1755465390781,7.29414147,191.61,191.54,3.0]
[1755465390981,3.03,191.61,191.54,3.0]
[1755465391684,4.2642914,191.6,191.54,3.0]
[1755465391883,3.03,191.58,191.54,3.0]
[1755465392282,3.03,191.6,191.54,3.0]
[1755465395378,3.03,191.58,191.54,3.0]
[1755465397681,5.84375388,191.61,191.55,3.0]
[1755465397884,4.26360959,191.6,191.56,3.0]
[1755465398090,127.56,191.62,191.56,3.0]
[1755465398689,3.03,191.61,191.56,3.0]
[1755465398881,3.03,191.61,191.57,0.03722855]
[1755465399080,133.40375388,191.62,191.57,0.03722855]
[1755465399290,3.03,191.6,191.59,3.0]
[1755465400288,3.03,191.6,191.57,0.03722855]
[1755465400289,3.03,191.6,191.57,3.03722855]
[1755465401587,3.03,191.6,191.57,0.03722855]
[1755465401782,4.25974524,191.59,191.57,0.03722855]
[1755465401982,3.03,191.59,191.57,0.03722855]
[1755465402697,7.05474006,191.58,191.57,0.03722855]
[1755465403184,11.31432109,191.58,191.57,0.03722855]
[1755465404196,14.12807497,191.58,191.51,3.0]
[1755465404393,8.28432109,191.57,191.51,3.0]
[1755465404592,3.03,191.55,191.52,3.0]
[1755465404784,5.84375388,191.58,191.46,5.2196]
[1755465404785,7.05474006,191.54,191.53,3.0]
[1755465406188,3.03,191.53,191.45,2.44729571]
[1755465406394,3.03,191.53,191.52,3.0]
[1755465406592,7.05480151,191.53,191.52,3.0]
[1755465407098,7.05480151,191.53,191.42,2.44729571]
[1755465407295,3.03,191.51,191.43,3.0]
[1755465407495,4.02480151,191.5,191.43,3.0]
[1755465407693,4.02480151,191.49,191.44,5.2202]
[1755465407892,4.02480151,191.48,191.45,2.87]
[1755465408094,0.03861709,191.49,191.45,2.87]
[1755465408389,4.02329996,191.48,191.45,2.87]
[1755465408590,0.03861709,191.49,191.45,2.87]
[1755465408789,4.0227209,191.48,191.45,2.87]
[1755465409096,0.03861709,191.49,191.45,2.87]
[1755465409292,4.0227157,191.48,191.45,2.87]
[1755465409493,0.03861709,191.49,191.45,2.87]
[1755465409689,4.02216552,191.48,191.41,5.2208]
[1755465409892,4.02216552,191.47,191.44,2.87]
[1755465410096,0.03861709,191.49,191.47,2.87]
[1755465410291,4.02214831,191.48,191.47,2.87]
[1755465410695,0.03760782,191.5,191.47,2.87]
[1755465410895,4.02202912,191.49,191.47,2.87]
[1755465411095,2.83,191.54,191.47,2.87]
[1755465411297,4.02220431,191.53,191.47,2.87]
[1755465411498,2.83,191.54,191.47,2.87]
[1755465411499,0.03991457,191.5,191.47,2.87]
[1755465411695,4.02220431,191.49,191.47,2.87]
[1755465411890,0.03991457,191.5,191.47,8.0894]
[1755465412086,0.03991457,191.5,191.49,2.44729571]
[1755465412291,4.06375154,191.5,191.49,5.31729571]
[1755465412992,0.03991457,191.5,191.49,5.31729571]
[1755465415999,2.83,191.57,191.5,2.87]
[1755465416204,5.84375388,191.58,191.53,2.87]
[1755465416205,4.02448272,191.56,191.53,2.87]
[1755465416501,4.02448272,191.55,191.53,2.87]
[1755465416799,4.02448272,191.54,191.53,2.87]
[1755465418102,6.85448272,191.54,191.52,0.03984238]
[1755465418303,6.85448272,191.53,191.52,0.03984238]
[1755465424405,6.85448272,191.53,191.52,2.90984238]
[1755465428506,4.02448272,191.53,191.52,2.90984238]
[1755465428700,4.02448272,191.53,191.52,5.35713809]
[1755465429512,2.83,191.58,191.53,2.87]
[1755465429708,4.01822954,191.57,191.53,2.87]
[1755465429912,4.01822954,191.56,191.53,2.87]
[1755465430110,4.01822954,191.55,191.53,2.87]
[1755465430313,4.01822954,191.54,191.53,2.87]
[1755465433819,2.83,191.59,191.53,2.87]
[1755465434023,4.01838423,191.58,191.53,2.87]
[1755465434318,4.01838423,191.57,191.53,2.87]
[1755465434511,2.83,191.58,191.53,2.87]
[1755465434512,4.01838423,191.56,191.53,2.87]
[1755465434707,4.01838423,191.55,191.53,2.87]
[1755465434919,2.83,191.58,191.53,2.87]
[1755465435120,4.01821699,191.57,191.53,2.87]
[1755465435321,4.01821699,191.56,191.53,2.87]
[1755465435524,4.01821699,191.55,191.53,2.87]
[1755465435821,133.32375388,191.62,191.53,2.87]
[1755465436017,2.83,191.57,191.53,2.87]
[1755465436320,4.01814217,191.56,191.53,2.87]
[1755465436522,4.01814217,191.55,191.53,2.87]
[1755465436716,133.32375388,191.62,191.53,2.87]
[1755465436911,2.83,191.57,191.53,2.87]
[1755465437113,4.0182688,191.56,191.53,2.87]
[1755465437319,4.0182688,191.55,191.53,2.87]
[1755465437521,2.83,191.57,191.53,2.87]
[1755465437721,4.01825333,191.56,191.53,2.87]
[1755465437921,4.01825333,191.56,191.52,2.48713809]
[1755465437922,2.78,191.54,191.52,0.03984238]
[1755465438124,6.79825333,191.53,191.52,0.03984238]
[1755465438722,6.79825333,191.53,191.52,2.99984238]
[1755465440922,6.79825333,191.53,191.52,0.03984238]
[1755465441822,2.78,191.52,191.42,2.96]
[1755465442026,4.01825333,191.51,191.42,2.96]
[1755465442220,4.01825333,191.5,191.42,2.96]
[1755465442432,2.78,191.52,191.45,2.96]
[1755465442626,4.01750093,191.51,191.45,2.96]
[1755465442834,4.01750093,191.5,191.45,2.96]
[1755465443035,6.79750093,191.49,191.45,2.96]
[1755465443228,2.78,191.49,191.45,2.96]
[1755465443626,8.29104959,191.55,191.45,2.96]
[1755465443827,2.78,191.48,191.45,2.96]
[1755465444321,2.78,191.46,191.37,2.96]
[1755465444529,4.01689227,191.45,191.37,2.96]
[1755465444826,4.01689227,191.44,191.37,2.96]
[1755465445032,2.78,191.46,191.37,2.96]
[1755465445228,4.01673312,191.45,191.37,2.96]
[1755465445425,4.01673312,191.44,191.38,2.96]
[1755465445629,2.78,191.46,191.38,2.96]
[1755465445836,2.78,191.44,191.38,2.96]
[1755465446129,2.78,191.42,191.38,2.96]
[1755465446526,2.78,191.44,191.38,2.96]
[1755465447542,4.01303193,191.43,191.38,2.96]
[1755465447726,2.78,191.44,191.38,2.96]
[1755465447928,2.44729571,191.49,191.38,2.96]
[1755465447929,6.79303193,191.43,191.38,2.96]
[1755465448225,2.78,191.43,191.38,2.96]
[1755465448628,2.78,191.48,191.38,2.96]
[1755465448830,2.44729571,191.43,191.34,2.96]
[1755465449128,2.78,191.41,191.34,2.96]
[1755465449327,4.01188853,191.4,191.34,2.96]
[1755465449536,6.79188853,191.39,191.34,2.96]
[1755465449730,4.01188853,191.38,191.34,2.96]